[Event "*** Qualifier 2: Titled Tuesday 3|2 Blitz"]
[Site "Chess.com"]
[Date "2017.04.11"]
[Round "5"]
[White "stepanosinovsky"]
[Black "korason34"]
[Result "1-0"]
[WhiteElo "2221"]
[BlackElo "2340"]
[TimeControl "180+2"]
[EndTime "14:04:37 PDT"]
[Termination "stepanosinovsky won by resignation"]

1. e4 {[%clk 0:03:00.6]} 1... c5 {[%clk 0:02:59.5]} 2. Nf3 {[%clk 0:03:00.8]}
2... d6 {[%clk 0:03:01.1]} 3. d4 {[%clk 0:03:00.3]} 3... cxd4 {[%clk 0:03:03]}
4. Qxd4 {[%clk 0:03:01.5]} 4... a6 {[%clk 0:03:02.3]} 5. c4 {[%clk 0:03:00.9]}
5... Nc6 {[%clk 0:03:01.8]} 6. Qe3 {[%clk 0:02:59.6]} 6... Nf6 {[%clk
0:03:01.6]} 7. Be2 {[%clk 0:02:57.2]} 7... g6 {[%clk 0:03:01.9]} 8. O-O {[%clk
0:02:56.9]} 8... Bg7 {[%clk 0:03:03.5]} 9. Nc3 {[%clk 0:02:57.3]} 9... O-O
{[%clk 0:03:04.6]} 10. Rd1 {[%clk 0:02:56.6]} 10... Qc7 {[%clk 0:03:00.8]} 11.
Nd5 {[%clk 0:02:40.7]} 11... Nxd5 {[%clk 0:02:59.3]} 12. cxd5 {[%clk 0:02:34.6]}
12... Ne5 {[%clk 0:02:59.3]} 13. Nxe5 {[%clk 0:02:31]} 13... Bxe5 {[%clk
0:03:01.2]} 14. a4 {[%clk 0:02:18.6]} 14... f5 {[%clk 0:02:59.7]} 15. f4 {[%clk
0:02:05.7]} 15... Bg7 {[%clk 0:02:57.3]} 16. Bd2 {[%clk 0:01:52.1]} 16... fxe4
{[%clk 0:02:56.4]} 17. Rac1 {[%clk 0:01:49.8]} 17... Qd8 {[%clk 0:02:53.6]} 18.
Bc3 {[%clk 0:01:40]} 18... Bf5 {[%clk 0:02:38.8]} 19. g4 {[%clk 0:01:21.6]}
19... Bd7 {[%clk 0:02:36.1]} 20. Bxg7 {[%clk 0:01:18.9]} 20... Kxg7 {[%clk
0:02:36.4]} 21. Qxe4 {[%clk 0:01:20.8]} 21... Qb6+ {[%clk 0:02:36.6]} 22. Qd4+
{[%clk 0:01:02.8]} 22... Qxd4+ {[%clk 0:02:34.3]} 23. Rxd4 {[%clk 0:01:04.7]}
23... Rfc8 {[%clk 0:02:32]} 24. Rdc4 {[%clk 0:01:02.4]} 24... Rxc4 {[%clk
0:02:29.7]} 25. Rxc4 {[%clk 0:01:04.3]} 25... Rc8 {[%clk 0:02:31.5]} 26. Rxc8
{[%clk 0:01:00.6]} 26... Bxc8 {[%clk 0:02:33.4]} 27. a5 {[%clk 0:00:33.1]} 27...
Bd7 {[%clk 0:02:31.5]} 28. Kf2 {[%clk 0:00:28.8]} 28... Ba4 {[%clk 0:02:30.7]}
29. Ke3 {[%clk 0:00:25]} 29... Kf6 {[%clk 0:02:29.9]} 30. g5+ {[%clk 0:00:22.9]}
30... Kf7 {[%clk 0:02:26.3]} 31. Bg4 {[%clk 0:00:23.7]} 31... Bb5 {[%clk
0:02:19.2]} 32. Bc8 {[%clk 0:00:20.8]} 32... Bc4 {[%clk 0:02:15.2]} 33. Kd4
{[%clk 0:00:21.1]} 33... Bf1 {[%clk 0:02:14.7]} 34. Bxb7 {[%clk 0:00:21.7]}
34... e6 {[%clk 0:02:15.5]} 35. dxe6+ {[%clk 0:00:22.2]} 35... Kxe6 {[%clk
0:02:16.2]} 36. Bc8+ {[%clk 0:00:22.3]} 36... Ke7 {[%clk 0:02:14.1]} 37. h4
{[%clk 0:00:23.9]} 37... Be2 {[%clk 0:02:13.9]} 38. b4 {[%clk 0:00:23.9]} 38...
Kd8 {[%clk 0:02:11.9]} 39. Be6 {[%clk 0:00:24.2]} 39... Kc7 {[%clk 0:02:12.2]}
40. Bg8 {[%clk 0:00:24.5]} 40... Kc6 {[%clk 0:02:12.4]} 41. Bxh7 {[%clk
0:00:25.1]} 41... Bh5 {[%clk 0:02:10.8]} 42. Bg8 {[%clk 0:00:24.4]} 42... Kb5
{[%clk 0:02:11.6]} 43. Kc3 {[%clk 0:00:25.2]} 43... Bf3 {[%clk 0:02:12.1]} 44.
Bc4+ {[%clk 0:00:26]} 44... Kc6 {[%clk 0:02:11.1]} 45. Bxa6 {[%clk 0:00:26.6]}
45... Kd5 {[%clk 0:02:12.4]} 46. Bd3 {[%clk 0:00:27.4]} 1-0

[Event "*** Qualifier 2: Titled Tuesday 3|2 Blitz"]
[Site "Chess.com"]
[Date "2017.04.11"]
[Round "5"]
[White "penguingm1"]
[Black "GMMelik"]
[Result "1-0"]
[WhiteElo "2587"]
[BlackElo "2493"]
[TimeControl "180+2"]
[EndTime "14:04:44 PDT"]
[Termination "penguingm1 won by resignation"]

1. d4 {[%clk 0:03:02]} 1... Nf6 {[%clk 0:03:00.5]} 2. c4 {[%clk 0:03:02.1]} 2...
g6 {[%clk 0:03:01.7]} 3. f3 {[%clk 0:03:02.8]} 3... e6 {[%clk 0:02:49.5]} 4. Nc3
{[%clk 0:02:59.1]} 4... d5 {[%clk 0:02:49.6]} 5. e4 {[%clk 0:02:55.3]} 5... c5
{[%clk 0:02:42.9]} 6. cxd5 {[%clk 0:02:48.5]} 6... exd5 {[%clk 0:02:41]} 7. Bg5
{[%clk 0:02:20.1]} 7... Be7 {[%clk 0:02:03.5]} 8. Bb5+ {[%clk 0:02:13.4]} 8...
Nc6 {[%clk 0:02:00.6]} 9. Bxf6 {[%clk 0:01:47.8]} 9... Bxf6 {[%clk 0:02:00.8]}
10. exd5 {[%clk 0:01:49.2]} 10... a6 {[%clk 0:01:55.6]} 11. Qe2+ {[%clk
0:01:16.1]} 11... Kf8 {[%clk 0:01:52]} 12. dxc6 {[%clk 0:01:01.1]} 12... cxd4
{[%clk 0:01:52.6]} 13. c7 {[%clk 0:00:51.9]} 13... Qxc7 {[%clk 0:01:45.5]} 14.
Nd5 {[%clk 0:00:52.5]} 14... Qa5+ {[%clk 0:01:46.5]} 15. b4 {[%clk 0:00:52.6]}
15... Qa3 {[%clk 0:01:33.2]} 16. Nxf6 {[%clk 0:00:13.8]} 16... Qc3+ {[%clk
0:01:24.2]} 17. Kf2 {[%clk 0:00:14.8]} 17... Qxa1 {[%clk 0:01:21.3]} 18. Qe8+
{[%clk 0:00:14.1]} 18... Kg7 {[%clk 0:01:21.4]} 19. Qe5 {[%clk 0:00:15.7]} 19...
Kf8 {[%clk 0:00:50.4]} 20. Bd3 {[%clk 0:00:09.3]} 20... Be6 {[%clk 0:00:47.1]}
21. Nd7+ {[%clk 0:00:08]} 21... Ke7 {[%clk 0:00:40.4]} 22. Nc5 {[%clk
0:00:07.7]} 22... b6 {[%clk 0:00:39.4]} 23. Ne4 {[%clk 0:00:08.5]} 23... Rhd8
{[%clk 0:00:30.4]} 24. Qf6+ {[%clk 0:00:07.5]} 24... Ke8 {[%clk 0:00:30.2]} 25.
Qh8+ {[%clk 0:00:07.1]} 25... Kd7 {[%clk 0:00:28.3]} 26. Qe5 {[%clk 0:00:07.7]}
26... Rac8 {[%clk 0:00:26.9]} 27. Qd6+ {[%clk 0:00:08.3]} 1-0

[Event "*** Qualifier 2: Titled Tuesday 3|2 Blitz"]
[Site "Chess.com"]
[Date "2017.04.11"]
[Round "5"]
[White "MFBerna"]
[Black "DanielNaroditsky"]
[Result "1-0"]
[WhiteElo "2141"]
[BlackElo "2749"]
[TimeControl "180+2"]
[EndTime "14:04:50 PDT"]
[Termination "MFBerna won by checkmate"]

1. e4 {[%clk 0:03:02]} 1... e6 {[%clk 0:03:00.7]} 2. d4 {[%clk 0:03:01.8]} 2...
d5 {[%clk 0:03:02.4]} 3. Nc3 {[%clk 0:03:02.4]} 3... Bb4 {[%clk 0:03:04]} 4. e5
{[%clk 0:03:03.3]} 4... c5 {[%clk 0:03:05.6]} 5. a3 {[%clk 0:03:02.6]} 5...
Bxc3+ {[%clk 0:03:07.2]} 6. bxc3 {[%clk 0:03:04.5]} 6... Qa5 {[%clk 0:03:08.8]}
7. Qd2 {[%clk 0:03:04.5]} 7... Ne7 {[%clk 0:03:04.8]} 8. a4 {[%clk 0:03:02.5]}
8... Bd7 {[%clk 0:02:57.8]} 9. Ba3 {[%clk 0:03:01.1]} 9... b6 {[%clk 0:02:59.1]}
10. Nf3 {[%clk 0:03:01.2]} 10... Bxa4 {[%clk 0:03:00.3]} 11. c4 {[%clk
0:02:51.2]} 11... Qxd2+ {[%clk 0:02:59]} 12. Kxd2 {[%clk 0:02:53.1]} 12... Nd7
{[%clk 0:02:59.2]} 13. cxd5 {[%clk 0:02:44.7]} 13... exd5 {[%clk 0:02:56.5]} 14.
Bxc5 {[%clk 0:02:02.1]} 14... bxc5 {[%clk 0:02:57.1]} 15. Rxa4 {[%clk
0:02:01.4]} 15... c4 {[%clk 0:02:58.6]} 16. Ra6 {[%clk 0:01:41.4]} 16... Nb6
{[%clk 0:02:58.2]} 17. Be2 {[%clk 0:01:32.7]} 17... Kd7 {[%clk 0:02:59.2]} 18.
Rha1 {[%clk 0:01:31]} 18... Nc6 {[%clk 0:03:00.8]} 19. Kc3 {[%clk 0:01:27.7]}
19... h6 {[%clk 0:03:00.3]} 20. Nh4 {[%clk 0:01:19.4]} 20... g6 {[%clk
0:03:00.8]} 21. Bg4+ {[%clk 0:01:19.5]} 21... Kc7 {[%clk 0:03:02.2]} 22. Bf3
{[%clk 0:01:13.7]} 22... Rhd8 {[%clk 0:02:58.8]} 23. g3 {[%clk 0:01:04.6]} 23...
Kb7 {[%clk 0:02:54.1]} 24. Ng2 {[%clk 0:01:02.9]} 24... Ne7 {[%clk 0:02:51.9]}
25. Ne3 {[%clk 0:00:57.1]} 25... Rd7 {[%clk 0:02:53.2]} 26. R6a5 {[%clk
0:00:43]} 26... a6 {[%clk 0:02:52.7]} 27. Rb1 {[%clk 0:00:38.2]} 27... Ka7
{[%clk 0:02:53.5]} 28. Rba1 {[%clk 0:00:29.8]} 28... Kb7 {[%clk 0:02:53]} 29.
Rb1 {[%clk 0:00:31.1]} 29... Kc7 {[%clk 0:02:44.4]} 30. Rc5+ {[%clk 0:00:27.4]}
30... Nc6 {[%clk 0:02:45.8]} 31. Nxd5+ {[%clk 0:00:24.3]} 31... Rxd5 {[%clk
0:02:47]} 32. Bxd5 {[%clk 0:00:19.6]} 32... Na4+ {[%clk 0:02:48.2]} 33. Kxc4
{[%clk 0:00:20.1]} 33... Nxc5 {[%clk 0:02:49.8]} 34. Kxc5 {[%clk 0:00:22]} 34...
Rb8 {[%clk 0:02:43.9]} 35. Rxb8 {[%clk 0:00:18.5]} 35... Nxb8 {[%clk 0:02:45.8]}
36. Bxf7 {[%clk 0:00:19.9]} 36... Nd7+ {[%clk 0:02:47.1]} 37. Kd5 {[%clk
0:00:18.2]} 37... a5 {[%clk 0:02:48.7]} 38. Ke6 {[%clk 0:00:13.8]} 38... a4
{[%clk 0:02:47.7]} 39. Ke7 {[%clk 0:00:13.5]} 39... a3 {[%clk 0:02:48]} 40. Ba2
{[%clk 0:00:13.6]} 40... Nb6 {[%clk 0:02:46.1]} 41. d5 {[%clk 0:00:13.6]} 41...
Nc8+ {[%clk 0:02:47.7]} 42. Ke8 {[%clk 0:00:13.5]} 42... Nb6 {[%clk 0:02:47]}
43. d6+ {[%clk 0:00:14.1]} 43... Kc6 {[%clk 0:02:48.9]} 44. Kf7 {[%clk
0:00:13.3]} 44... Na4 {[%clk 0:02:44.6]} 45. Ke7 {[%clk 0:00:09.7]} 45... Nb6
{[%clk 0:02:43.3]} 46. f4 {[%clk 0:00:07.8]} 46... h5 {[%clk 0:02:43.2]} 47. h3
{[%clk 0:00:08.6]} 47... Nc8+ {[%clk 0:02:31.3]} 48. Ke8 {[%clk 0:00:08.9]}
48... g5 {[%clk 0:02:33.2]} 49. fxg5 {[%clk 0:00:09.6]} 49... Nb6 {[%clk
0:02:33.4]} 50. Ke7 {[%clk 0:00:09.6]} 50... Na4 {[%clk 0:02:35.3]} 51. d7
{[%clk 0:00:09.5]} 51... Nc3 {[%clk 0:02:37.2]} 52. Bb3 {[%clk 0:00:10.2]} 52...
Na2 {[%clk 0:02:39.1]} 53. Bxa2 {[%clk 0:00:10.9]} 53... h4 {[%clk 0:02:40.2]}
54. gxh4 {[%clk 0:00:11.2]} 54... Kc5 {[%clk 0:02:41.4]} 55. d8=Q {[%clk
0:00:12.2]} 55... Kb4 {[%clk 0:02:43.3]} 56. Qd6+ {[%clk 0:00:13]} 56... Kc3
{[%clk 0:02:45.2]} 57. Qd3+ {[%clk 0:00:12.6]} 57... Kb2 {[%clk 0:02:46.1]} 58.
Qb3+ {[%clk 0:00:13.5]} 58... Ka1 {[%clk 0:02:48]} 59. Qb1# {[%clk 0:00:12.8]}
1-0

[Event "*** Qualifier 2: Titled Tuesday 3|2 Blitz"]
[Site "Chess.com"]
[Date "2017.04.11"]
[Round "5"]
[White "Grebeniuk-S"]
[Black "PowerThinking2650"]
[Result "1-0"]
[WhiteElo "2395"]
[BlackElo "2208"]
[TimeControl "180+2"]
[EndTime "14:04:50 PDT"]
[Termination "Grebeniuk-S won by resignation"]

1. d4 {[%clk 0:03:02]} 1... Nf6 {[%clk 0:03:01]} 2. Nf3 {[%clk 0:03:02.8]} 2...
g6 {[%clk 0:03:02.2]} 3. Bg5 {[%clk 0:03:04.3]} 3... Bg7 {[%clk 0:03:03.6]} 4.
Nbd2 {[%clk 0:03:05.9]} 4... d5 {[%clk 0:03:04.4]} 5. Bxf6 {[%clk 0:03:06.5]}
5... exf6 {[%clk 0:03:03.2]} 6. e3 {[%clk 0:03:07.1]} 6... f5 {[%clk 0:03:02.8]}
7. g3 {[%clk 0:03:09]} 7... O-O {[%clk 0:03:02.6]} 8. Bg2 {[%clk 0:03:10.2]}
8... Nd7 {[%clk 0:02:59.7]} 9. O-O {[%clk 0:03:10.4]} 9... h5 {[%clk 0:02:54.9]}
10. c4 {[%clk 0:03:09.2]} 10... Nf6 {[%clk 0:02:50.6]} 11. Rc1 {[%clk
0:03:09.7]} 11... Be6 {[%clk 0:02:49.4]} 12. Qb3 {[%clk 0:03:09.4]} 12... dxc4
{[%clk 0:02:47.6]} 13. Nxc4 {[%clk 0:03:02.9]} 13... Ne4 {[%clk 0:02:38.7]} 14.
Qxb7 {[%clk 0:02:54.3]} 14... Bd5 {[%clk 0:01:52.2]} 15. Qa6 {[%clk 0:02:55.2]}
15... Qe7 {[%clk 0:01:28.2]} 16. Qa3 {[%clk 0:02:47.8]} 16... Qxa3 {[%clk
0:01:25.5]} 17. Nxa3 {[%clk 0:02:48.6]} 17... c5 {[%clk 0:01:17]} 18. b3 {[%clk
0:02:36.3]} 18... cxd4 {[%clk 0:01:10.9]} 19. exd4 {[%clk 0:02:28.7]} 19... a5
{[%clk 0:01:08.6]} 20. Nc4 {[%clk 0:02:27.4]} 20... a4 {[%clk 0:01:09.3]} 21.
Nb6 {[%clk 0:02:28.6]} 21... Rad8 {[%clk 0:00:49.4]} 22. Nxa4 {[%clk 0:02:27.3]}
22... h4 {[%clk 0:00:43.5]} 23. gxh4 {[%clk 0:02:24]} 23... Rfe8 {[%clk
0:00:36.8]} 24. Nc5 {[%clk 0:02:14.7]} 24... Ra8 {[%clk 0:00:31.9]} 25. Rc2
{[%clk 0:02:08.4]} 25... Nf6 {[%clk 0:00:28.6]} 26. Ne5 {[%clk 0:01:59.3]} 26...
Bxg2 {[%clk 0:00:26.9]} 27. Kxg2 {[%clk 0:02:01.2]} 27... Nh5 {[%clk 0:00:25.6]}
28. Kf3 {[%clk 0:01:35.5]} 28... Rad8 {[%clk 0:00:26.3]} 29. Rc4 {[%clk
0:01:15.1]} 29... Rd5 {[%clk 0:00:25.9]} 30. b4 {[%clk 0:00:53.4]} 30... Red8
{[%clk 0:00:24.2]} 31. Rb1 {[%clk 0:00:50.8]} 31... Nf6 {[%clk 0:00:20.7]} 32.
Nc6 {[%clk 0:00:46.2]} 1-0

[Event "*** Qualifier 2: Titled Tuesday 3|2 Blitz"]
[Site "Chess.com"]
[Date "2017.04.11"]
[Round "5"]
[White "GeorgMeier"]
[Black "Cecile_Haussernot"]
[Result "1/2-1/2"]
[WhiteElo "2711"]
[BlackElo "2304"]
[TimeControl "180+2"]
[EndTime "14:04:53 PDT"]
[Termination "Game drawn by repetition"]

1. Nf3 {[%clk 0:03:02]} 1... c5 {[%clk 0:02:57.5]} 2. g3 {[%clk 0:03:02.1]} 2...
Nc6 {[%clk 0:02:55.8]} 3. c4 {[%clk 0:03:03.5]} 3... g6 {[%clk 0:02:50.7]} 4.
Nc3 {[%clk 0:03:03.2]} 4... Bg7 {[%clk 0:02:48.8]} 5. Bg2 {[%clk 0:03:04.7]}
5... e6 {[%clk 0:02:47.4]} 6. O-O {[%clk 0:03:02.9]} 6... Nge7 {[%clk 0:02:47]}
7. e3 {[%clk 0:03:03.6]} 7... d5 {[%clk 0:02:44.9]} 8. cxd5 {[%clk 0:03:04.4]}
8... exd5 {[%clk 0:02:43.5]} 9. d4 {[%clk 0:03:05.9]} 9... cxd4 {[%clk 0:02:34]}
10. Nxd4 {[%clk 0:03:07]} 10... O-O {[%clk 0:02:31]} 11. Re1 {[%clk 0:03:08.3]}
11... Be6 {[%clk 0:02:24.7]} 12. Nxc6 {[%clk 0:02:58.6]} 12... bxc6 {[%clk
0:02:23.5]} 13. Na4 {[%clk 0:02:59.7]} 13... Rb8 {[%clk 0:02:16.4]} 14. Bd2
{[%clk 0:03:00.8]} 14... Qd6 {[%clk 0:02:06.4]} 15. Qc2 {[%clk 0:01:57.9]} 15...
Rfc8 {[%clk 0:02:02.1]} 16. Bc3 {[%clk 0:01:55.1]} 16... c5 {[%clk 0:01:59.8]}
17. Bxg7 {[%clk 0:01:53.8]} 17... Kxg7 {[%clk 0:02:01]} 18. Rac1 {[%clk
0:01:53.4]} 18... c4 {[%clk 0:01:52.9]} 19. Red1 {[%clk 0:01:54.6]} 19... Qe5
{[%clk 0:01:47.3]} 20. Rd2 {[%clk 0:01:52.2]} 20... Nc6 {[%clk 0:01:45.5]} 21.
Qc3 {[%clk 0:01:49]} 21... Qxc3 {[%clk 0:01:44.9]} 22. Nxc3 {[%clk 0:01:46.1]}
22... Nb4 {[%clk 0:01:44.7]} 23. Bf1 {[%clk 0:01:35.8]} 23... Nd3 {[%clk
0:01:40.2]} 24. Bxd3 {[%clk 0:01:26]} 24... cxd3 {[%clk 0:01:42.1]} 25. f3
{[%clk 0:01:25.1]} 25... Rb4 {[%clk 0:01:28.8]} 26. Kf2 {[%clk 0:01:21.7]} 26...
h5 {[%clk 0:01:23.2]} 27. b3 {[%clk 0:01:09.5]} 27... Rb7 {[%clk 0:01:07.2]} 28.
Rxd3 {[%clk 0:00:51.4]} 28... Rbc7 {[%clk 0:01:08.1]} 29. Ke2 {[%clk 0:00:32.9]}
29... Bf5 {[%clk 0:01:07]} 30. e4 {[%clk 0:00:33.9]} 30... dxe4 {[%clk
0:01:04.7]} 31. fxe4 {[%clk 0:00:35.8]} 31... Bxe4 {[%clk 0:01:02.8]} 32. Re3
{[%clk 0:00:37.4]} 32... Bf5 {[%clk 0:01:00.5]} 33. Ke1 {[%clk 0:00:34.9]} 33...
a5 {[%clk 0:00:52.3]} 34. Kd2 {[%clk 0:00:35.8]} 34... Rd8+ {[%clk 0:00:52]} 35.
Ke1 {[%clk 0:00:37.2]} 35... Rdc8 {[%clk 0:00:49.6]} 36. Kd2 {[%clk 0:00:38.2]}
36... Rd8+ {[%clk 0:00:51]} 37. Ke1 {[%clk 0:00:39.6]} 37... Rdc8 {[%clk
0:00:52.4]} 38. Kd2 {[%clk 0:00:41]} 38... Rd8+ {[%clk 0:00:53.8]} 39. Ke1
{[%clk 0:00:42.3]} 39... Rdc8 {[%clk 0:00:55.2]} 40. Kd2 {[%clk 0:00:43.4]}
40... Rd8+ {[%clk 0:00:56.6]} 41. Ke1 {[%clk 0:00:44.8]} 41... Rdc8 {[%clk
0:00:58]} 1/2-1/2

[Event "*** Qualifier 2: Titled Tuesday 3|2 Blitz"]
[Site "Chess.com"]
[Date "2017.04.11"]
[Round "5"]
[White "MITerryble"]
[Black "jefferyx"]
[Result "0-1"]
[WhiteElo "2646"]
[BlackElo "2654"]
[TimeControl "180+2"]
[EndTime "14:04:56 PDT"]
[Termination "jefferyx won by resignation"]

1. d4 {[%clk 0:03:02]} 1... Nf6 {[%clk 0:03:01.4]} 2. Nf3 {[%clk 0:03:02.7]}
2... g6 {[%clk 0:03:03.1]} 3. Bg5 {[%clk 0:03:03.4]} 3... Bg7 {[%clk 0:03:04.7]}
4. Nbd2 {[%clk 0:03:04.8]} 4... h6 {[%clk 0:03:06.3]} 5. Bh4 {[%clk 0:03:05.5]}
5... d6 {[%clk 0:03:08]} 6. c3 {[%clk 0:03:06.8]} 6... g5 {[%clk 0:03:09.5]} 7.
Bg3 {[%clk 0:03:07.7]} 7... Nh5 {[%clk 0:03:11.1]} 8. e4 {[%clk 0:03:09]} 8...
e6 {[%clk 0:03:11.5]} 9. Bd3 {[%clk 0:03:06.8]} 9... Nc6 {[%clk 0:03:12.7]} 10.
Nc4 {[%clk 0:02:54.5]} 10... Bd7 {[%clk 0:03:12.5]} 11. Qe2 {[%clk 0:02:49.4]}
11... Qe7 {[%clk 0:03:13.4]} 12. O-O-O {[%clk 0:02:47.9]} 12... O-O-O {[%clk
0:03:14]} 13. e5 {[%clk 0:02:43.3]} 13... Nxg3 {[%clk 0:02:26.8]} 14. hxg3
{[%clk 0:02:41.8]} 14... g4 {[%clk 0:02:28.3]} 15. exd6 {[%clk 0:02:26.9]} 15...
cxd6 {[%clk 0:02:30.2]} 16. Nh4 {[%clk 0:02:18.3]} 16... d5 {[%clk 0:02:31.7]}
17. Ne3 {[%clk 0:02:17.8]} 17... h5 {[%clk 0:02:33.2]} 18. Kb1 {[%clk 0:02:15]}
18... Kb8 {[%clk 0:02:34.8]} 19. f3 {[%clk 0:02:10.2]} 19... gxf3 {[%clk
0:02:32.5]} 20. gxf3 {[%clk 0:02:12.1]} 20... Rhg8 {[%clk 0:02:28.6]} 21. f4
{[%clk 0:02:13]} 21... Bf6 {[%clk 0:02:29.9]} 22. Nf1 {[%clk 0:02:00.9]} 22...
Bxh4 {[%clk 0:02:27.2]} 23. Rxh4 {[%clk 0:01:31.6]} 23... Rxg3 {[%clk
0:02:28.6]} 24. Qh2 {[%clk 0:01:23]} 24... Rg7 {[%clk 0:02:19.8]} 25. f5+ {[%clk
0:01:16.2]} 25... e5 {[%clk 0:02:20.8]} 26. Ne3 {[%clk 0:00:48.3]} 26... Bc8
{[%clk 0:02:11.9]} 27. dxe5 {[%clk 0:00:38.7]} 27... Qxe5 {[%clk 0:01:54.3]} 28.
Rxh5 {[%clk 0:00:32.7]} 28... Rg3 {[%clk 0:01:49]} 29. Nf1 {[%clk 0:00:20.9]}
29... Rf3 {[%clk 0:01:41.8]} 30. Qxe5+ {[%clk 0:00:18.9]} 30... Nxe5 {[%clk
0:01:42.8]} 31. Bc2 {[%clk 0:00:20.8]} 31... Nc4 {[%clk 0:01:35.2]} 32. Nd2
{[%clk 0:00:20.4]} 32... Nxd2+ {[%clk 0:01:31.9]} 33. Rxd2 {[%clk 0:00:22.3]}
33... Rf1+ {[%clk 0:01:31]} 34. Rd1 {[%clk 0:00:23]} 34... Rxd1+ {[%clk
0:01:31.5]} 35. Bxd1 {[%clk 0:00:24.9]} 35... Re8 {[%clk 0:01:33.2]} 36. Bf3
{[%clk 0:00:22.4]} 36... Re5 {[%clk 0:01:33.1]} 37. f6 {[%clk 0:00:22.3]} 37...
Re6 {[%clk 0:01:14.8]} 38. Bxd5 {[%clk 0:00:20.1]} 38... Rxf6 {[%clk 0:01:15.7]}
39. Kc2 {[%clk 0:00:20.7]} 39... Kc7 {[%clk 0:01:13.4]} 40. Rh7 {[%clk
0:00:21.2]} 40... Bf5+ {[%clk 0:01:14.1]} 0-1

[Event "*** Qualifier 2: Titled Tuesday 3|2 Blitz"]
[Site "Chess.com"]
[Date "2017.04.11"]
[Round "5"]
[White "FelixBlohberger"]
[Black "alturas_pacificas"]
[Result "1-0"]
[WhiteElo "2242"]
[BlackElo "2132"]
[TimeControl "180+2"]
[EndTime "14:04:56 PDT"]
[Termination "FelixBlohberger won by resignation"]

1. c4 {[%clk 0:03:00.4]} 1... c5 {[%clk 0:03:00.1]} 2. Nc3 {[%clk 0:03:01]} 2...
Nf6 {[%clk 0:03:01.1]} 3. Nf3 {[%clk 0:03:00.9]} 3... Nc6 {[%clk 0:03:02.5]} 4.
d4 {[%clk 0:02:57.3]} 4... cxd4 {[%clk 0:03:02.6]} 5. Nxd4 {[%clk 0:02:59.2]}
5... g6 {[%clk 0:02:59.7]} 6. e4 {[%clk 0:02:56.7]} 6... d6 {[%clk 0:02:59.7]}
7. f3 {[%clk 0:02:49.2]} 7... Bg7 {[%clk 0:03:00]} 8. Be3 {[%clk 0:02:43.1]}
8... O-O {[%clk 0:03:00.9]} 9. Be2 {[%clk 0:02:36]} 9... Bd7 {[%clk 0:03:01.7]}
10. O-O {[%clk 0:02:31.7]} 10... Nxd4 {[%clk 0:03:02.8]} 11. Bxd4 {[%clk
0:02:31.2]} 11... Bc6 {[%clk 0:03:04.7]} 12. b4 {[%clk 0:02:24.6]} 12... b6
{[%clk 0:03:01.6]} 13. Nd5 {[%clk 0:02:19.1]} 13... Nxd5 {[%clk 0:02:57]} 14.
cxd5 {[%clk 0:02:17.5]} 14... Bb7 {[%clk 0:02:46.7]} 15. Bxg7 {[%clk 0:02:17.2]}
15... Kxg7 {[%clk 0:02:48.6]} 16. Qd4+ {[%clk 0:02:18.8]} 16... Kg8 {[%clk
0:02:49.2]} 17. Rac1 {[%clk 0:02:18.7]} 17... Rc8 {[%clk 0:02:48.1]} 18. Qd2
{[%clk 0:02:13.6]} 18... Qd7 {[%clk 0:02:47.3]} 19. Rxc8 {[%clk 0:01:49.9]}
19... Rxc8 {[%clk 0:02:46.9]} 20. Rc1 {[%clk 0:01:51.5]} 20... Rc7 {[%clk
0:02:43]} 21. Rxc7 {[%clk 0:01:43.8]} 21... Qxc7 {[%clk 0:02:44.1]} 22. Bb5
{[%clk 0:01:45.2]} 22... h5 {[%clk 0:02:30.2]} 23. Bc6 {[%clk 0:01:44.4]} 23...
Bc8 {[%clk 0:01:59.9]} 24. h4 {[%clk 0:01:42]} 24... a5 {[%clk 0:01:55.8]} 25.
Kh2 {[%clk 0:01:16.7]} 25... axb4 {[%clk 0:01:53.5]} 26. Qxb4 {[%clk 0:01:13.9]}
26... e6 {[%clk 0:01:53.9]} 27. f4 {[%clk 0:01:02.7]} 27... Qd8 {[%clk
0:01:48.5]} 28. g3 {[%clk 0:01:00.3]} 28... e5 {[%clk 0:01:32.8]} 29. fxe5
{[%clk 0:00:48.6]} 29... dxe5 {[%clk 0:01:33.7]} 30. d6 {[%clk 0:00:47.3]} 30...
Qf6 {[%clk 0:01:31.6]} 31. Qd2 {[%clk 0:00:46.2]} 31... Qd8 {[%clk 0:00:52.5]}
32. d7 {[%clk 0:00:42.3]} 32... Ba6 {[%clk 0:00:48.4]} 33. Qg5 {[%clk
0:00:43.1]} 33... f6 {[%clk 0:00:46.2]} 34. Qxg6+ {[%clk 0:00:41.2]} 34... Kf8
{[%clk 0:00:47.6]} 35. Qxh5 {[%clk 0:00:39.5]} 35... Ke7 {[%clk 0:00:47.6]} 36.
Qe8+ {[%clk 0:00:31.6]} 1-0